[Event "Italian-ch Teams-B 2022"]
[Site "Montesilvano"]
[Date "2022.04.21"]
[Round "4.3"]
[White "Lanzani, Mario"]
[Black "Bifulco, Michel"]
[Result "1/2-1/2"]
[ECO "A36"]
[WhiteElo "2266"]
[BlackElo "2274"]
[Annotator "TA"]
[PlyCount "56"]
[EventDate "2022.04.19"]
[EventType "team-tourn"]
[EventCountry "ITA"]
[SourceTitle "playchess.com"]
[Source "ChessBase"]
[SourceQuality "1"]
[TimeControl "40/5400+30:1800+30"]

{[%evp 13,56,2,17,11,19,22,22,18,13,14,17,11,21,0,-10,-23,0,-35,-18,-32,-22,-44,-46,-48,-41,-71,-71,-71,-71,-71,-71,-68,-15,-17,-17,-19,0,0,0,0,0,0,0,0,0]} 1. c4 {[%emt 0:00:06]} e5 {[%emt 0:00:06]} 2. e3 {[%emt 0:00:17]} c5 {[%emt 0:00:07]} 3. Nc3 {[%emt 0:00:27]} Nc6 {[%emt 0:00:05]} 4. g3 {[%emt 0:01:48]} g6 {[%emt 0:00:13]} 5. Bg2 {[%emt 0:00:10]} Bg7 {[%emt 0:00:06]} 6. Nge2 {[%emt 0:00:30]} Nge7 {[%emt 0:00:11]} 7. O-O {[%emt 0:00:19]} d6 {[%emt 0:00:06]} 8. Rb1 {[%emt 0:04:11] A36: Symmetrical English vs ...g6: 4 Bg2 Bg7.} Be6 {[%emt 0:00:27]} 9. Nd5 {[%emt 0:00:55]} Rb8 {[%emt 0:04:56]} 10. Nec3 {[%emt 0:02:01][%cal Be2c3,Bc3d5,Bd5e7,Be7c6][%mdl 32]} O-O {[%emt 0:00:20]} 11. a3 {[%emt 0:00:32]} a6 {[%emt 0:00:16]} 12. b4 {[%emt 0:02:36]} b5 {[%emt 0:02:10]} 13. cxb5 {[%emt 0:05:26]} axb5 {[%emt 0:00:34]} 14. d3 {[%emt 0:00:27]} Nxd5 {[%emt 0:01:54]} 15. Nxd5 {[%emt 0:03:14]} Ne7 {[%emt 0:02:01]} 16. Qb3 {[%emt 0:09:11]} Kh8 {[%emt 0:04:49]} 17. Bb2 {[%emt 0:01:55]} Qd7 {[%emt 0:06:35] [#]} 18. Rfc1 $146 {[%emt 0:04:50]} ({Predecessor:} 18. Rbc1 Rfc8 19. Rfe1 Rc7 20. e4 Rbc8 21. Qd1 Bxd5 22. exd5 cxb4 23. axb4 Rxc1 24. Bxc1 {½-½ (44) Galego,L (2500)-Munoz Santana,J (2391) Khanty-Mansiysk 2010}) 18... Qb7 {[%emt 0:11:25][%cal Re7d5]} 19. Nxe7 {[%emt 0:04:02]} Bxb3 {[%emt 0:00:52]} 20. Bxb7 {[%emt 0:00:43]} Rxb7 {[%emt 0:00:20]} 21. Nc6 {[%emt 0:01:24] [#] Hoping for Na5.} Rc7 {[%emt 0:01:24]} 22. Na5 {[%emt 0:01:38]} Be6 {[%emt 0:03:49]} (22... Ba4 $15) 23. bxc5 $11 {[%emt 0:06:10] The position is equal.} dxc5 {[%emt 0:01:09] And now ...Ra8 would win.} 24. Ba1 {[%emt 0:03:04]} Rb8 {[%emt 0:04:30]} 25. Nc4 {[%emt 0:01:42]} Bxc4 {[%emt 0:13:14]} 26. dxc4 {[%emt 0:01:57]} b4 {[%emt 0:00:28]} 27. axb4 {[%emt 0:01:29]} cxb4 {[%emt 0:00:09]} 28. c5 {[%emt 0:00:44]} Rb5 {[%emt 0:02:26] Weighted Error Value: White=0.06 (flawless) /Black=0.11 (very precise)} 1/2-1/2

[Event "Italian-ch Teams-B 2022"]
[Site "Montesilvano"]
[Date "2022.04.21"]
[Round "4.4"]
[White "Mazzilli, Piero"]
[Black "Andreoni, Giuseppe"]
[Result "0-1"]
[ECO "C78"]
[WhiteElo "2296"]
[BlackElo "2158"]
[Annotator "TA"]
[PlyCount "85"]
[EventDate "2022.04.19"]
[EventType "team-tourn"]
[EventCountry "ITA"]
[SourceTitle "playchess.com"]
[Source "ChessBase"]
[SourceQuality "1"]
[TimeControl "40/5400+30:1800+30"]

{[%evp 12,85,45,46,26,27,31,26,26,20,31,19,6,14,29,15,108,14,5,12,12,-20,-14,-229,-40,-126,-133,-134,-140,-143,-147,-139,-131,-143,-144,-140,-124,-131,-29,-135,-136,-135,-128,-128,-137,-120,-138,-131,-139,-161,-158,-152,-157,-268,-183,-167,-167,-470,-461,-482,-509,-497,-479,-802,-536,-826,-662,-29970,-29969,-12850,-1966,-29977,-29978,-29978,-29979,-29978]} 1. e4 {[%emt 0:00:05]} e5 {[%emt 0:00:15]} 2. Nf3 {[%emt 0:00:27]} Nc6 {[%emt 0:00:06]} 3. Bb5 {[%emt 0:05:31]} a6 {[%emt 0:00:24]} 4. Ba4 {[%emt 0:00:54]} Nf6 {[%emt 0:00:10]} 5. O-O {[%emt 0:00:08]} b5 {[%emt 0:00:04]} 6. Bb3 {[%emt 0:00:04]} Bc5 {[%emt 0:00:04]} 7. a4 {[%emt 0:07:00] is now more promising than 7.c3.} Rb8 {[%emt 0:00:18] [#] C78: Ruy Lopez: Archangelsk and Möller Defences.} (7... Nxe4 $2 8. axb5 Nxf2 9. Qe2 $18 (9. Rxf2 Bxf2+ 10. Kxf2 Nd4 $16)) 8. Nxe5 $1 {[%emt 0:03:38]} Nxe5 {[%emt 0:00:13]} 9. d4 {[%emt 0:00:10]} Bxd4 $1 {[%emt 0:00:04] White has an edge.} 10. Qxd4 {[%emt 0:00:05]} d6 {[%emt 0:00:10]} 11. f4 {[%emt 0:02:42]} Nc6 {[%emt 0:00:28]} 12. Qc3 {[%emt 0:01:33] Black must now prevent e5.} Ne7 {[%emt 0:00:16]} 13. e5 {[%emt 0:06:45] [#]} dxe5 $146 {[%emt 0:11:12]} (13... Ne4 $1 $11 14. Qe1 Nc5) ({Predecessor:} 13... Ne4 14. Qe1 Nc5 15. Ba2 Bf5 16. axb5 axb5 17. b4 Ne6 18. Bb2 O-O 19. Bxe6 Bxe6 20. Nd2 Bf5 21. Nf3 {½-½ (21) Riff,V (2394)-Kosten,A (2457) Lyon 2015}) 14. Bxf7+ {[%emt 0:15:19]} Kxf7 $11 {[%emt 0:11:24]} 15. fxe5 {[%emt 0:00:14][%mdl 64] Pin} b4 {[%emt 0:30:33]} 16. Qe1 {[%emt 0:05:46]} Qd4+ {[%emt 0:05:11]} 17. Kh1 $2 {[%emt 0:01:37] [#]} (17. Rf2 $1 $11 {and White has nothing to worry.}) 17... Bb7 $2 {[%emt 0:00:59]} (17... Re8 $1 $19 18. exf6 (18. c3 Qg4) 18... Nf5) 18. exf6 {[%emt 0:21:52]} (18. Nd2 $1 $15) 18... gxf6 $17 {[%emt 0:00:39]} 19. Nd2 {[%emt 0:00:04]} Rhg8 {[%emt 0:09:36][%csl Gg8][%cal Rb7g2]} 20. Nf3 {[%emt 0:00:05] [#]} Rxg2 $3 {[%emt 0:01:39][%cal Og2g1][%mdl 512] aiming for ...Rg1+! The board is on fire. Active counter play!} 21. Nxd4 {[%emt 0:12:43]} Re2+ {[%emt 0:03:05]} 22. Kg1 {[%emt 0:00:06] [#]} Rg8+ $1 {[%emt 0:01:45]} ({Inferior is} 22... Rg2+ 23. Kh1 Re2+ 24. Kg1 Rg2+ 25. Kh1 $17) 23. Qg3 {[%emt 0:00:05]} Rg2+ {[%emt 0:00:26]} 24. Qxg2 {[%emt 0:00:04]} Rxg2+ {[%emt 0:00:05]} 25. Kh1 {[%emt 0:00:02] Hoping for Nf3.} Rg3+ {[%emt 0:00:12][%cal Bg2g3,Bg3f3,Bf3f5,Bf5d5][%mdl 32]} 26. Nf3 {[%emt 0:00:15]} Bxf3+ {[%emt 0:00:11]} 27. Rxf3 {[%emt 0:00:03]} Rxf3 {[%emt 0:00:04][%mdl 4096] Endgame KRB-KRN} 28. Kg2 {[%emt 0:00:40] Prevents Rf2+.} Rf5 {[%emt 0:00:09]} 29. Bd2 {[%emt 0:01:04]} c5 {[%emt 0:03:51]} 30. Be3 {[%emt 0:05:08]} Rd5 {[%emt 0:09:20] Against Rd1} 31. Rf1 {[%emt 0:02:33]} Nf5 {[%emt 0:01:36]} 32. Kf3 {[%emt 0:01:23]} (32. Bf4 $17) 32... Nd4+ {[%emt 0:01:38]} 33. Ke4 {[%emt 0:01:38]} Nxc2 {[%emt 0:03:25] Strongly threatening ...Re5+.} 34. Bf2 $2 {[%emt 0:00:04]} (34. Bg1 {was the crucial defense.} Rh5 35. Kd3) 34... Ke6 $19 {[%emt 0:01:56]} 35. Rc1 {[%emt 0:00:58]} b3 {[%emt 0:01:52]} 36. Kf3 {[%emt 0:00:03]} c4 {[%emt 0:00:13][%cal Bc5c4,Bc4c3][%mdl 32]} 37. Rg1 {[%emt 0:00:19]} (37. Rb1 $142) 37... Ra5 {[%emt 0:00:53][%cal Oc4c3] ...c3! is the strong threat.} 38. Rg7 {[%emt 0:00:03]} Rxa4 {[%emt 0:00:56][%cal Oc4c3] Threatens to win with ...c3!} 39. Rxh7 {[%emt 0:00:13]} c3 {[%emt 0:00:28]} 40. Rb7 {[%emt 0:00:57]} Rb4 {[%emt 0:00:54]} (40... cxb2 $142 41. Rxb3 Ra3 42. Rxa3 Nxa3) 41. Rxb4 {[%emt 0:30:04]} Nxb4 {[%emt 0:30:06]} 42. Bd4 {[%emt 0:00:02]} cxb2 {[%emt 0:00:53]} 43. Bxb2 {[%emt 0:00:30] Weighted Error Value: White=0.86/Black=0.44} 0-1

[Event "Italian-ch Teams-B 2022"]
[Site "Montesilvano"]
[Date "2022.04.21"]
[Round "4.4"]
[White "Simoli, Sergio"]
[Black "Pasini, Nicolo"]
[Result "0-1"]
[ECO "A37"]
[WhiteElo "2262"]
[BlackElo "2252"]
[Annotator "TA"]
[PlyCount "106"]
[EventDate "2022.04.19"]
[EventType "team-tourn"]
[EventCountry "ITA"]
[SourceTitle "playchess.com"]
[Source "ChessBase"]
[SourceQuality "1"]
[TimeControl "40/5400+30:1800+30"]

{[%evp 19,106,-7,18,5,5,14,22,0,20,-44,-56,-96,-86,-102,-78,-108,-113,-106,-101,-114,-24,-39,-42,-68,-61,-81,-81,-73,-65,-58,-41,-95,-89,-88,-35,-45,-35,-52,-29,-52,-24,-79,-69,-150,-150,-171,-150,-150,-150,-150,-151,-155,-135,-155,-125,-351,-259,-222,0,-213,-215,-262,-200,-569,-622,-557,-533,-844,-833,-742,-427,-707,-672,-622,-610,-574,-594,-474,-309,-229,-204,-204,0,-29981,-29982,-29980,-29981,-29981,-29981]} 1. Nf3 {[%emt 0:00:25]} c5 {[%emt 0:00:07]} 2. g3 {[%emt 0:00:28]} g6 {[%emt 0:00:08]} 3. Bg2 {[%emt 0:00:08]} Bg7 {[%emt 0:00:05]} 4. O-O {[%emt 0:00:17]} Nc6 {[%emt 0:00:05]} 5. c4 {[%emt 0:01:51]} d6 {[%emt 0:00:07]} 6. Nc3 {[%emt 0:00:45]} e5 {[%emt 0:00:05]} 7. d3 {[%emt 0:01:03]} Nge7 {[%emt 0:00:14]} 8. Bd2 {[%emt 0:02:13]} O-O {[%emt 0:00:29]} 9. a3 {[%emt 0:03:07]} a5 {[%emt 0:00:02]} 10. Rb1 {[%emt 0:00:46]} f5 {[%emt 0:08:39]} 11. Ne1 {[%emt 0:02:31] A37: Symmetrical English vs ...g6: 4 Bg2 Bg7 5 Nf3.} Be6 {[%emt 0:00:57]} 12. Nd5 {[%emt 0:01:16]} Rb8 {[%emt 0:00:40]} 13. Nc2 {[%emt 0:12:03] [#] The position is equal.} a4 $146 {[%emt 0:11:33]} ({Predecessor:} 13... h6 14. b4 axb4 15. axb4 b6 16. Na3 f4 17. gxf4 Nxb4 18. Nxb4 cxb4 19. Nc2 exf4 20. Nxb4 {½-½ (34) Gerzhoy,L (2386)-Moiseenko,A (2649) Kitchener 2006}) 14. Re1 {[%emt 0:18:45]} (14. b4 $11) 14... b5 $15 {[%emt 0:05:56]} 15. e4 {[%emt 0:13:44]} bxc4 {[%emt 0:07:23]} 16. dxc4 {[%emt 0:01:08]} Qd7 {[%emt 0:11:19]} 17. Nce3 {[%emt 0:05:30]} f4 $1 {[%emt 0:05:45]} 18. Nxe7+ {[%emt 0:01:01]} Nxe7 {[%emt 0:00:10]} (18... Qxe7 19. Nd5 Qf7 20. Qxa4 fxg3 21. fxg3 (21. f4 $2 exf4 22. Nxf4 Nd4 $19) 21... Qf2+ 22. Kh1 Qxd2 23. Red1 $15) 19. Nd5 {[%emt 0:00:05] [#]} Nxd5 {[%emt 0:08:50]} (19... Rb3 $1 $17 {With the idea ...Nc6.} 20. Bc3 (20. gxf4 Nxd5 21. f5 Nf4 $17) 20... Nc6) 20. cxd5 $11 {[%emt 0:00:23]} Bh3 {[%emt 0:01:10]} 21. f3 {[%emt 0:02:43]} h5 {[%emt 0:04:49]} 22. Re2 {[%emt 0:06:19]} Rb3 {[%emt 0:07:00]} 23. Bc3 {[%emt 0:02:44]} fxg3 {[%emt 0:07:50]} 24. hxg3 {[%emt 0:00:20]} Bh6 {[%emt 0:00:06]} 25. Qf1 {[%emt 0:04:43] [#]} (25. Kh2 $15 Bxg2 26. Kxg2) 25... Bg4 $1 $17 {[%emt 0:02:35] 0x0.00138d2c0565dp-1022s more active pieces.} 26. Rbe1 {[%emt 0:00:18] Rf2 is the strong threat.} Qe7 {[%emt 0:02:51]} (26... h4 $17 27. gxh4 Qe7) 27. Rf2 $1 $15 {[%emt 0:01:47]} Bd7 {[%emt 0:00:29]} 28. Bh3 $1 {[%emt 0:01:14]} Bg5 {[%emt 0:01:09]} 29. Qg2 {[%emt 0:03:58]} Kh7 {[%emt 0:03:15]} 30. Kh2 {[%emt 0:08:00]} (30. f4 $11 {keeps the balance.} Bxh3 31. Qxh3 exf4 32. e5) 30... h4 {[%emt 0:02:28]} (30... Bb5 $5 {[%cal Rh5h4]} 31. Be6 Bd7 $15) 31. Bxd7 {[%emt 0:01:20]} (31. gxh4 $1 $15 Bxh4 32. Rg1) 31... hxg3+ $17 {[%emt 0:00:29]} (31... Qxd7 32. Rff1 $15) 32. Kxg3 {[%emt 0:04:11]} (32. Qxg3 $2 Bf4 33. Qxf4 Rxf4 $19) 32... Bh4+ {[%emt 0:00:43]} ({Stronger than} 32... Qxd7 33. Rh1+ Kg7 34. Re2 $11) 33. Kh2 {[%emt 0:00:10][%cal Oe1g1]} Bxf2 {[%emt 0:00:19] The board is on fire.} 34. Qxf2 {[%emt 0:00:05]} Qxd7 {[%emt 0:00:18]} 35. Kg2 {[%emt 0:00:36]} Rbb8 {[%emt 0:06:02]} 36. Rh1+ {[%emt 0:00:55]} Kg7 {[%emt 0:00:45]} 37. Rh4 {[%emt 0:01:16]} (37. Qg3 $17 Qf7 38. Rh4 (38. Qh3 $2 Rh8 $19) (38. Bxe5+ $2 dxe5 39. Qxe5+ Qf6 $19)) 37... g5 {[%emt 0:01:26]} 38. Qg3 {[%emt 0:00:14] [#]} Rg8 $2 {[%emt 0:01:08]} (38... Kg6 $1 $19 {Threatens to win with ...Rf4.} 39. Rg4 Qe7) 39. Rg4 $2 {[%emt 0:00:45]} (39. Rh5 $11 {and White is okay.} Kf8 40. Rh6) 39... Kf7 $19 {[%emt 0:00:25]} 40. Kf2 {[%emt 0:00:19]} Qe7 {[%emt 0:00:26]} 41. Qh3 $2 {[%emt 0:16:04]} (41. Qg2) 41... Rh8 {[%emt 0:17:16]} 42. Qg2 {[%emt 0:01:55]} Rh5 {[%emt 0:00:17] aiming for ...Rbh8.} 43. Ke3 {[%emt 0:04:02]} Rbh8 {[%emt 0:04:26] Hoping for ...Rh2.} 44. Qf1 {[%emt 0:03:09]} c4 {[%emt 0:03:05]} 45. Rg2 {[%emt 0:01:11]} (45. Qxc4 $142 Rh2 46. Kd3) 45... Qa7+ {[%emt 0:02:03]} 46. Kd2 {[%emt 0:00:50]} Rh2 {[%emt 0:02:30]} 47. Qe2 {[%emt 0:00:36]} Rxg2 {[%emt 0:00:42]} 48. Qxg2 {[%emt 0:00:14][%mdl 4096] Endgame KQR-KQB} Kg6 {[%emt 0:00:50]} 49. f4 {[%emt 0:01:32]} Rh5 {[%emt 0:02:04]} 50. fxe5 {[%emt 0:01:47]} Qh7 $2 {[%emt 0:00:20]} ({Black should try} 50... dxe5 $19 {And now ...Rh4 would win.} 51. Bxe5 Qe7) 51. Ke3 $2 {[%emt 0:02:42][%mdl 8192]} ({Wrong is} 51. exd6 $2 Rh2 52. Qxh2 Qxh2+ $19) (51. Qf3 $11 Qf7 52. Qxf7+ Kxf7 53. exd6) 51... Rh3+ {[%emt 0:02:41] Black mates.} 52. Kf2 {[%emt 0:01:14]} Rh2 {[%emt 0:00:08]} 53. exd6 {[%emt 0:00:25]} Qh4+ {[%emt 0:00:08] Weighted Error Value: White=0.76/Black=0.32} 0-1

[Event "Italian-ch Teams-B 2022"]
[Site "Montesilvano"]
[Date "2022.04.21"]
[Round "4.4"]
[White "Stromboli, Carlo"]
[Black "Signorelli, Gaetano"]
[Result "1-0"]
[ECO "D20"]
[WhiteElo "2234"]
[BlackElo "2196"]
[Annotator "TA"]
[PlyCount "29"]
[EventDate "2022.04.19"]
[EventType "team-tourn"]
[EventCountry "ITA"]
[SourceTitle "playchess.com"]
[Source "ChessBase"]
[SourceQuality "1"]
[TimeControl "40/5400+30:1800+30"]

{[%evp 16,29,39,16,37,47,40,31,28,34,196,188,206,181,341,346]} 1. e4 {[%emt 0:00:08]} e6 {[%emt 0:00:10]} 2. c4 {[%emt 0:00:55]} d5 {[%emt 0:04:56]} 3. cxd5 {[%emt 0:00:31]} exd5 {[%emt 0:00:31]} 4. exd5 {[%emt 0:00:59]} Qxd5 {[%emt 0:03:05]} 5. Nc3 {[%emt 0:00:57]} Qd8 {[%emt 0:12:13]} 6. d4 {[%emt 0:00:55]} Nf6 {[%emt 0:01:31]} 7. Nf3 {[%emt 0:05:51]} Be7 {[%emt 0:07:00]} 8. Bc4 {[%emt 0:05:19]} O-O {[%emt 0:04:16]} 9. h3 {[%emt 0:01:00]} Bf5 {[%emt 0:08:08] D20: Queen's Gambit Accepted: 3 e3 and 3 e4.} 10. O-O {[%emt 0:09:21][%cal Bh1f1,Bf1e1,Be1e5][%mdl 32]} Nbd7 {[%emt 0:04:15]} 11. Re1 {[%emt 0:02:54]} Nb6 {[%emt 0:02:46]} 12. Bb3 {[%emt 0:06:12] [#]} c5 $146 {[%emt 0:04:17] [#]} ({Black should play} 12... c6 $14) ({Predecessor:} 12... c6 13. Ne5 Nbd5 14. Qf3 Be6 15. Bg5 Nxc3 16. bxc3 Bd5 17. Qf5 Bxb3 18. axb3 {1-0 (40) Pichot,A (2564)-Tsydypov,Z (2514) Chess.com INT 2018}) 13. dxc5 $1 $18 {[%emt 0:05:33]} Qxd1 {[%emt 0:11:44]} 14. Nxd1 {[%emt 0:01:37]} Bxc5 {[%emt 0:00:21]} (14... Nc8 {is a better defense.} 15. Nc3 Nd7) 15. Re5 $1 {[%emt 0:03:23][%csl LRc5,LRf5] Black did not feel at home in the position after the opening.  Weighted Error Value: White=0.04 (flawless) /Black=0.75} 1-0

[Event "Italian-ch Teams-B 2022"]
[Site "Montesilvano"]
[Date "2022.04.22"]
[Round "5.1"]
[White "Fier, Alexandr"]
[Black "Dardha, Daniel"]
[Result "1/2-1/2"]
[ECO "B33"]
[WhiteElo "2583"]
[BlackElo "2552"]
[Annotator "TA"]
[PlyCount "109"]
[EventDate "2022.04.19"]
[EventType "team-tourn"]
[EventCountry "ITA"]
[SourceTitle "playchess.com"]
[Source "ChessBase"]
[SourceQuality "1"]
[TimeControl "40/5400+30:1800+30"]

{[%evp 16,109,11,4,10,0,0,0,0,-9,8,-3,42,46,33,33,27,22,45,10,28,17,38,22,22,26,30,30,59,65,82,80,108,83,93,90,149,125,200,189,218,191,207,233,241,0,9,0,34,0,233,241,377,348,377,355,345,324,359,0,0,0,0,0,0,0,0,0,0,0,0,0,0,0,0,0,0,0,0,0,0,0,0,0,0,0,0,0,0,0,0,0,0,0,0,0]} 1. e4 {[%emt 0:00:03]} c5 {[%emt 0:14:11]} 2. Nf3 {[%emt 0:00:04]} Nc6 {[%emt 0:00:12]} 3. d4 {[%emt 0:00:04]} cxd4 {[%emt 0:00:06]} 4. Nxd4 {[%emt 0:00:02]} Nf6 {[%emt 0:02:24]} 5. Nc3 {[%emt 0:00:04]} e5 {[%emt 0:00:07]} 6. Ndb5 {[%emt 0:00:02]} d6 {[%emt 0:00:08]} 7. Nd5 {[%emt 0:00:02]} Nxd5 {[%emt 0:00:08]} 8. exd5 {[%emt 0:00:02]} Nb8 {[%emt 0:00:08]} 9. a4 {[%emt 0:00:03]} Be7 {[%emt 0:01:22] B33: Sicilian: Pelikan and Sveshnikov Variations.} 10. Bd2 {[%emt 0:00:14]} Nd7 {[%emt 0:03:11]} 11. a5 {[%emt 0:01:05]} O-O {[%emt 0:06:15]} 12. Be2 {[%emt 0:00:04]} f5 {[%emt 0:02:56]} (12... a6 $5 {[%cal Ra6b5]} 13. Na3 (13. Nc3 b5 $11) 13... Nf6 $11) 13. c4 {[%emt 0:01:55] [#]} f4 $146 {[%emt 0:06:37]} ({Predecessor:} 13... Nf6 14. O-O Ne4 15. Be1 f4 16. f3 Nc5 17. b4 Nd7 18. Nc3 Bh4 19. Bxh4 Qxh4 {1-0 (51) Mischuk,D (2364)-Dzida,K (2239) Tornelo INT 2020}) 14. Nc3 {[%emt 0:05:41]} Nf6 {[%emt 0:03:04]} 15. Bd3 {[%emt 0:00:20] Inhibits Bf5.} Bd7 {[%emt 0:07:24]} 16. Qe2 {[%emt 0:01:48]} Qc8 {[%emt 0:01:33][%cal Of4f3]} 17. b4 {[%emt 0:03:52]} Bf5 {[%emt 0:04:03][%cal Oe5e4]} (17... f3 {looks sharper.} 18. Qxf3 Ng4 19. Qg3 Nxf2 20. O-O Nxd3 21. Qxd3 Bf5) 18. Ne4 {[%emt 0:00:09]} Qd7 {[%emt 0:06:43]} 19. O-O {[%emt 0:01:38]} Nxe4 {[%emt 0:05:07]} 20. Bxe4 {[%emt 0:00:24]} Bxe4 {[%emt 0:00:14]} 21. Qxe4 {[%emt 0:00:04]} f3 {[%emt 0:00:10]} 22. gxf3 {[%emt 0:02:11]} Rf6 {[%emt 0:04:10]} 23. Kh1 {[%emt 0:01:23]} Raf8 {[%emt 0:00:23]} 24. Rg1 {[%emt 0:00:12]} Rxf3 {[%emt 0:02:37]} 25. Be3 {[%emt 0:00:06]} R3f5 {[%emt 0:10:15]} (25... Qh3 $142) 26. Qg4 {[%emt 0:02:47][%csl Gg1][%cal Rg4g7] &Bianco is more active.} ({Don't play} 26. Bxa7 $6 Rf4 27. Qe2 (27. Qg2 Bf6 $11) 27... Rc8 $14) 26... Bf6 {[%emt 0:03:53]} (26... g6 $16) 27. Bxa7 $18 {[%emt 0:01:44]} e4 {[%emt 0:01:11]} 28. Rae1 {[%emt 0:00:33]} Be5 {[%emt 0:05:19]} 29. Rxe4 {[%emt 0:01:33]} h5 {[%emt 0:00:57] [#]} 30. Qg6 {[%emt 0:05:41]} (30. Qg2 $1 $18) 30... R8f6 $11 {[%emt 0:01:42]} 31. Qg2 {[%emt 0:00:02]} Qf7 $1 {[%emt 0:00:22][%cal Rf5f2]} 32. Rh4 {[%emt 0:09:59]} (32. Rxe5 $5 dxe5 33. Be3 $14) 32... Kf8 $2 {[%emt 0:03:47] [#]} (32... Rf4 $1 $11 {and Black has nothing to worry.} 33. Rxh5 Rxc4) 33. Qh3 $1 $18 {[%emt 0:06:52]} Kg8 {[%emt 0:01:06]} (33... Rg6 {is a better defense.} 34. Rd1 Rg4 35. Rxg4 hxg4 36. Qxg4 Rf4 37. Qc8+ Qe8 38. Qxe8+ (38. Qxb7 Rxc4 39. Qb8 Rc8 $11) 38... Kxe8) 34. Be3 {[%emt 0:00:46]} Rf3 {[%emt 0:00:21]} 35. Qc8+ {[%emt 0:04:02]} Kh7 {[%emt 0:00:02]} 36. Qg4 {[%emt 0:00:14]} g6 {[%emt 0:02:12][%cal Of6f4]} 37. Qg5 {[%emt 0:03:38] Prevents R6f4.} ({Better is} 37. Qe4 $18 R6f5 38. b5) 37... Bf4 $11 {[%emt 0:01:31] The position is equal.} 38. Rxf4 {[%emt 0:09:00]} R6xf4 {[%emt 0:00:08]} 39. Bxf4 {[%emt 0:00:04]} Rxf4 {[%emt 0:00:05][%mdl 4096] Endgame KQR-KQR} 40. Re1 {[%emt 0:00:19] And now Re7 would win.} Rxf2 {[%emt 0:00:17]} 41. Re7 {[%emt 0:30:39]} Rf1+ {[%emt 0:30:24]} 42. Kg2 {[%emt 0:00:15]} Rf2+ {[%emt 0:00:06]} 43. Kg3 {[%emt 0:00:05]} Rf3+ {[%emt 0:00:53]} 44. Kh4 {[%emt 0:00:06]} Rf4+ {[%emt 0:00:20]} 45. Qxf4 {[%emt 0:00:04]} Qxe7+ {[%emt 0:00:04] KQ-KQ} 46. Kh3 {[%emt 0:00:03]} Qe1 {[%emt 0:00:00]} 47. c5 {[%emt 0:00:00]} dxc5 {[%emt 0:00:00]} 48. d6 {[%emt 0:00:00] Black must now prevent Qf7+.} Qe6+ {[%emt 0:00:00]} 49. Kh4 {[%emt 0:00:00]} c4 {[%emt 0:00:00] Threatens to win with ...c3.} 50. Qd4 {[%emt 0:00:00] aiming for d7.} c3 {[%emt 0:00:08] ( -> ...c2)} 51. d7 $1 {[%emt 0:00:00]} Qe7+ {[%emt 0:02:11]} (51... c2 $5 52. d8=Q (52. d8=R $2 g5+ 53. Kg3 Qe1+ 54. Qf2 Qe5+ 55. Kg2 Qe4+ 56. Qf3 Qxf3+ 57. Kxf3 c1=Q $19) 52... Qe1+ 53. Kh3 Qf1+ 54. Kh4 Qe1+ 55. Kh3 Qf1+ 56. Kh4 Qe1+ $11) 52. Kg3 {[%emt 0:00:00]} Qd8 {[%emt 0:00:38]} 53. Qxc3 {[%emt 0:00:00]} Qxd7 {[%emt 0:00:06]} 54. Qc4 {[%emt 0:00:00]} g5 {[%emt 0:01:20]} 55. b5 {[%emt 0:01:48] Black defended with fortune.  Weighted Error Value: White=0.21 (precise) /Black=0.19 (very precise)} 1/2-1/2